[Event "*** SCC Grand Prix: Titled Tuesday Blitz"]
[Site "Chess.com"]
[Date "2020.06.23"]
[Round "1"]
[White "ShimanovAlex"]
[Black "angryhorse9"]
[Result "1-0"]
[WhiteElo "2867"]
[BlackElo "2442"]
[TimeControl "180+1"]
[EndTime "10:10:38 PDT"]
[Termination "ShimanovAlex won by resignation"]

1. d4 {[%clk 0:03:00.8]} 1... Nf6 {[%clk 0:02:59]} 2. Bf4 {[%clk 0:02:59.7]}
2... d5 {[%clk 0:02:55.7]} 3. Nf3 {[%clk 0:02:57.9]} 3... c5 {[%clk 0:02:53.8]}
4. e3 {[%clk 0:02:57.8]} 4... Nc6 {[%clk 0:02:53.2]} 5. Nbd2 {[%clk 0:02:57.6]}
5... e6 {[%clk 0:02:43.8]} 6. c3 {[%clk 0:02:57.1]} 6... Bd6 {[%clk 0:02:41.5]}
7. Bg3 {[%clk 0:02:56.9]} 7... O-O {[%clk 0:02:41.1]} 8. Bd3 {[%clk 0:02:57.1]}
8... b6 {[%clk 0:02:30.1]} 9. Qe2 {[%clk 0:02:56.8]} 9... Qc7 {[%clk 0:02:28.1]}
10. Rd1 {[%clk 0:02:42.8]} 10... e5 {[%clk 0:02:24.2]} 11. dxe5 {[%clk
0:02:41.8]} 11... Nxe5 {[%clk 0:02:22.8]} 12. Nxe5 {[%clk 0:02:39.7]} 12... Bxe5
{[%clk 0:02:22.9]} 13. Nf3 {[%clk 0:02:39.9]} 13... Bxg3 {[%clk 0:02:18.8]} 14.
hxg3 {[%clk 0:02:40.4]} 14... h6 {[%clk 0:02:19.4]} 15. Qc2 {[%clk 0:02:30.9]}
15... Be6 {[%clk 0:02:05.5]} 16. O-O {[%clk 0:02:27.7]} 16... Rad8 {[%clk
0:02:00.8]} 17. Bf5 {[%clk 0:02:23.3]} 17... Qc8 {[%clk 0:01:58.1]} 18. Nh4
{[%clk 0:02:19.6]} 18... Bxf5 {[%clk 0:01:54.6]} 19. Qxf5 {[%clk 0:02:10.7]}
19... Qc6 {[%clk 0:01:52.2]} 20. Qc2 {[%clk 0:01:57.3]} 20... Qe6 {[%clk
0:01:46.9]} 21. Qf5 {[%clk 0:01:43.1]} 21... Qc6 {[%clk 0:01:41.4]} 22. Qb1
{[%clk 0:01:38.9]} 22... Rfe8 {[%clk 0:01:40.5]} 23. Nf3 {[%clk 0:01:37]} 23...
Qe6 {[%clk 0:01:39.5]} 24. Rfe1 {[%clk 0:01:31.9]} 24... Ne4 {[%clk 0:01:31.2]}
25. Nd2 {[%clk 0:01:30.4]} 25... Nf6 {[%clk 0:01:18.6]} 26. b4 {[%clk
0:01:24.7]} 26... Qe5 {[%clk 0:01:08.7]} 27. Qb3 {[%clk 0:01:20.5]} 27... Ng4
{[%clk 0:01:04.6]} 28. Nf3 {[%clk 0:01:18.4]} 28... Qh5 {[%clk 0:01:03.2]} 29.
bxc5 {[%clk 0:01:16.6]} 29... bxc5 {[%clk 0:01:02.2]} 30. Qb5 {[%clk 0:01:07.7]}
30... Rc8 {[%clk 0:00:53]} 31. Qd7 {[%clk 0:01:03.1]} 31... Nf6 {[%clk
0:00:51.8]} 32. Qxa7 {[%clk 0:00:59]} 32... Qg6 {[%clk 0:00:48.2]} 33. Qb6
{[%clk 0:00:51]} 33... Qc2 {[%clk 0:00:47.3]} 34. Qb3 {[%clk 0:00:49.7]} 34...
Qf5 {[%clk 0:00:46.1]} 35. c4 {[%clk 0:00:47.8]} 35... dxc4 {[%clk 0:00:43.7]}
36. Qxc4 {[%clk 0:00:47.9]} 36... Ne4 {[%clk 0:00:43.5]} 37. a4 {[%clk
0:00:44.9]} 37... g5 {[%clk 0:00:42.8]} 38. Rf1 {[%clk 0:00:39.7]} 38... Red8
{[%clk 0:00:40]} 39. Rxd8+ {[%clk 0:00:36.1]} 39... Rxd8 {[%clk 0:00:39.7]} 40.
a5 {[%clk 0:00:36.2]} 40... g4 {[%clk 0:00:34.1]} 41. Nh4 {[%clk 0:00:36.2]}
41... Qe5 {[%clk 0:00:33.3]} 42. a6 {[%clk 0:00:27.8]} 42... Ra8 {[%clk
0:00:25]} 43. Ng6 {[%clk 0:00:23.7]} 43... Qe8 {[%clk 0:00:23.9]} 44. Ra1 {[%clk
0:00:20]} 44... Kg7 {[%clk 0:00:21.8]} 45. Nf4 {[%clk 0:00:20.1]} 45... Qe5
{[%clk 0:00:22.2]} 46. Rd1 {[%clk 0:00:18.8]} 46... Nf6 {[%clk 0:00:18.6]} 47.
Nd3 {[%clk 0:00:17.5]} 47... Qd6 {[%clk 0:00:17.7]} 48. Ra1 {[%clk 0:00:17.1]}
48... Nd7 {[%clk 0:00:14.6]} 49. Qxg4+ {[%clk 0:00:16.9]} 49... Kf8 {[%clk
0:00:14.2]} 50. Qc4 {[%clk 0:00:16.1]} 50... Kg7 {[%clk 0:00:13.8]} 51. a7
{[%clk 0:00:14]} 51... Qc7 {[%clk 0:00:13]} 52. Qa4 {[%clk 0:00:08.9]} 52... c4
{[%clk 0:00:13.3]} 53. Nf4 {[%clk 0:00:09.2]} 53... c3 {[%clk 0:00:12.7]} 54.
Nd5 {[%clk 0:00:09.6]} 54... Qc5 {[%clk 0:00:12.1]} 55. Qxd7 {[%clk 0:00:06.6]}
55... c2 {[%clk 0:00:11.8]} 56. Rc1 {[%clk 0:00:06.3]} 56... Rxa7 {[%clk
0:00:12.4]} 57. Qg4+ {[%clk 0:00:06.8]} 57... Kf8 {[%clk 0:00:12.9]} 58. Qe4
{[%clk 0:00:07.3]} 58... Ra2 {[%clk 0:00:12.5]} 59. Nf4 {[%clk 0:00:07.3]} 59...
Qc3 {[%clk 0:00:11.4]} 60. Ne2 {[%clk 0:00:06.9]} 60... Qd2 {[%clk 0:00:11.4]}
61. Qc4 {[%clk 0:00:07.4]} 61... Rb2 {[%clk 0:00:10.8]} 62. Rf1 {[%clk
0:00:07.3]} 62... Qd1 {[%clk 0:00:08.8]} 63. g4 {[%clk 0:00:06]} 63... Rb1
{[%clk 0:00:09.1]} 64. Ng3 {[%clk 0:00:06.2]} 64... c1=Q {[%clk 0:00:08.5]} 65.
Rxd1 {[%clk 0:00:06.6]} 65... Qxd1+ {[%clk 0:00:08.6]} 66. Kh2 {[%clk
0:00:07.1]} 66... Qc1 {[%clk 0:00:08.9]} 67. Qf4 {[%clk 0:00:06.7]} 67... Kg7
{[%clk 0:00:08.2]} 68. Nf5+ {[%clk 0:00:06.9]} 68... Kf8 {[%clk 0:00:08.7]} 69.
Qxh6+ {[%clk 0:00:07.3]} 69... Ke8 {[%clk 0:00:09.2]} 70. Qh8+ {[%clk
0:00:07.5]} 70... Kd7 {[%clk 0:00:09.2]} 71. Qd4+ {[%clk 0:00:08.2]} 71... Kc6
{[%clk 0:00:09.6]} 72. Qf6+ {[%clk 0:00:08]} 72... Kb5 {[%clk 0:00:09.9]} 73.
Qxf7 {[%clk 0:00:07.7]} 73... Qh1+ {[%clk 0:00:10.3]} 74. Kg3 {[%clk 0:00:08.2]}
74... Qc1 {[%clk 0:00:11]} 75. Qd5+ {[%clk 0:00:08.3]} 75... Ka4 {[%clk
0:00:11.3]} 76. Nd4 {[%clk 0:00:08.5]} 76... Qc7+ {[%clk 0:00:11.6]} 77. Kf3
{[%clk 0:00:08.1]} 77... Rb6 {[%clk 0:00:10.1]} 78. Nf5 {[%clk 0:00:07.8]} 78...
Rb5 {[%clk 0:00:09.6]} 79. Qe4+ {[%clk 0:00:07.9]} 79... Ka5 {[%clk 0:00:09.7]}
80. g5 {[%clk 0:00:06.9]} 80... Qd8 {[%clk 0:00:09.8]} 81. Qf4 {[%clk
0:00:06.5]} 81... Qf8 {[%clk 0:00:08.9]} 82. g4 {[%clk 0:00:06.7]} 82... Qa8+
{[%clk 0:00:09.1]} 83. Kg3 {[%clk 0:00:07]} 83... Qd8 {[%clk 0:00:09.1]} 84. g6
{[%clk 0:00:06.8]} 84... Rb1 {[%clk 0:00:08]} 85. Qe4 {[%clk 0:00:05.6]} 85...
Rg1+ {[%clk 0:00:08.2]} 86. Kh2 {[%clk 0:00:06.2]} 86... Qd1 {[%clk 0:00:09]}
87. Ng3 {[%clk 0:00:05.6]} 87... Re1 {[%clk 0:00:07.8]} 88. g7 {[%clk
0:00:05.7]} 88... Qd2 {[%clk 0:00:08.5]} 89. Qf5+ {[%clk 0:00:05.4]} 89... Kb4
{[%clk 0:00:08.3]} 90. g8=Q {[%clk 0:00:05.7]} 1-0

[Event "*** SCC Grand Prix: Titled Tuesday Blitz"]
[Site "Chess.com"]
[Date "2020.06.23"]
[Round "2"]
[White "WiktoriaPOL"]
[Black "RusPakhom"]
[Result "0-1"]
[WhiteElo "1938"]
[BlackElo "2372"]
[TimeControl "180+1"]
[EndTime "10:13:12 PDT"]
[Termination "RusPakhom won by resignation"]

1. c4 {[%clk 0:03:00.9]} 1... e5 {[%clk 0:02:55.2]} 2. Nc3 {[%clk 0:03:00]} 2...
d6 {[%clk 0:02:55.2]} 3. Nf3 {[%clk 0:02:58.8]} 3... g6 {[%clk 0:02:55.5]} 4. d4
{[%clk 0:02:58.8]} 4... Nd7 {[%clk 0:02:52.7]} 5. dxe5 {[%clk 0:02:52.3]} 5...
Nxe5 {[%clk 0:02:51.6]} 6. Nxe5 {[%clk 0:02:52]} 6... dxe5 {[%clk 0:02:52.5]} 7.
Qxd8+ {[%clk 0:02:51.9]} 7... Kxd8 {[%clk 0:02:52.8]} 8. g3 {[%clk 0:02:49.4]}
8... c6 {[%clk 0:02:52.6]} 9. Bg2 {[%clk 0:02:49.3]} 9... Be6 {[%clk 0:02:52.4]}
10. b3 {[%clk 0:02:47.8]} 10... Kc7 {[%clk 0:02:50.1]} 11. Bb2 {[%clk
0:02:47.2]} 11... f6 {[%clk 0:02:49.2]} 12. O-O-O {[%clk 0:02:43.2]} 12... Ne7
{[%clk 0:02:49]} 13. Ba3 {[%clk 0:02:37]} 13... Nf5 {[%clk 0:02:44.3]} 14. e3
{[%clk 0:02:34.9]} 14... Bxa3+ {[%clk 0:02:43]} 15. Kc2 {[%clk 0:02:32.6]} 15...
Rad8 {[%clk 0:02:43.1]} 16. Rd4 {[%clk 0:02:22.2]} 16... exd4 {[%clk 0:02:41.9]}
0-1

[Event "*** SCC Grand Prix: Titled Tuesday Blitz"]
[Site "Chess.com"]
[Date "2020.06.23"]
[Round "2"]
[White "realmadridtv"]
[Black "Irina_Barchuk"]
[Result "1-0"]
[WhiteElo "2433"]
[BlackElo "2196"]
[TimeControl "180+1"]
[EndTime "10:13:46 PDT"]
[Termination "realmadridtv won by resignation"]

1. d4 {[%clk 0:03:00.9]} 1... Nf6 {[%clk 0:02:59.2]} 2. c4 {[%clk 0:03:01.1]}
2... g6 {[%clk 0:02:58.8]} 3. g3 {[%clk 0:03:01.5]} 3... Bg7 {[%clk 0:02:59.7]}
4. Bg2 {[%clk 0:03:01.7]} 4... O-O {[%clk 0:03:00.3]} 5. Nc3 {[%clk 0:03:01.5]}
5... d6 {[%clk 0:03:00.5]} 6. Nf3 {[%clk 0:03:01.4]} 6... Nc6 {[%clk 0:03:00.3]}
7. O-O {[%clk 0:03:01]} 7... Bf5 {[%clk 0:03:00.3]} 8. d5 {[%clk 0:02:49.9]}
8... Na5 {[%clk 0:02:59.3]} 9. Nh4 {[%clk 0:02:49.5]} 9... Bd7 {[%clk
0:02:54.7]} 10. b3 {[%clk 0:02:49.1]} 10... Nxd5 {[%clk 0:02:29.8]} 11. Nxd5
{[%clk 0:02:48]} 11... Bxa1 {[%clk 0:02:29]} 12. Bd2 {[%clk 0:02:46.6]} 12... c6
{[%clk 0:02:26.7]} 13. Bxa5 {[%clk 0:02:46.1]} 13... Qxa5 {[%clk 0:02:10.6]} 14.
Nxe7+ {[%clk 0:02:46.2]} 14... Kh8 {[%clk 0:02:10.8]} 15. Qxa1+ {[%clk
0:02:46.3]} 15... f6 {[%clk 0:02:10.9]} 16. Nexg6+ {[%clk 0:02:44.8]} 16... hxg6
{[%clk 0:02:09.6]} 17. Nxg6+ {[%clk 0:02:45.7]} 17... Kg7 {[%clk 0:02:10.2]} 18.
Nxf8 {[%clk 0:02:46.3]} 18... Rxf8 {[%clk 0:02:10.7]} 19. Rd1 {[%clk 0:02:46.3]}
19... Qc5 {[%clk 0:02:05.8]} 20. Qd4 {[%clk 0:02:44.9]} 20... Bf5 {[%clk
0:01:59.1]} 21. Qxd6 {[%clk 0:02:41.5]} 21... Qa3 {[%clk 0:01:55]} 22. Qxa3
{[%clk 0:02:40.9]} 1-0

[Event "*** SCC Grand Prix: Titled Tuesday Blitz"]
[Site "Chess.com"]
[Date "2020.06.23"]
[Round "2"]
[White "MVM2008"]
[Black "MF1966Idrisov"]
[Result "1-0"]
[WhiteElo "1983"]
[BlackElo "2344"]
[TimeControl "180+1"]
[EndTime "10:13:57 PDT"]
[Termination "MVM2008 won by resignation"]

1. e4 {[%clk 0:03:00.9]} 1... d5 {[%clk 0:02:57.3]} 2. exd5 {[%clk 0:03:00.9]}
2... Qxd5 {[%clk 0:02:57.2]} 3. Nc3 {[%clk 0:03:01.4]} 3... Qd6 {[%clk 0:02:57]}
4. Nf3 {[%clk 0:03:01.7]} 4... a6 {[%clk 0:02:57.4]} 5. d4 {[%clk 0:03:02.1]}
5... Nf6 {[%clk 0:02:57.4]} 6. Bd3 {[%clk 0:03:02]} 6... Bg4 {[%clk 0:02:56.7]}
7. h3 {[%clk 0:03:02.1]} 7... Bh5 {[%clk 0:02:56]} 8. O-O {[%clk 0:02:56.5]}
8... e6 {[%clk 0:02:55.7]} 9. Bg5 {[%clk 0:02:52]} 9... Be7 {[%clk 0:02:54.6]}
10. Re1 {[%clk 0:02:45.6]} 10... O-O {[%clk 0:02:51.1]} 11. Qe2 {[%clk
0:02:45.3]} 11... Nc6 {[%clk 0:02:46.6]} 12. Ne4 {[%clk 0:02:40.7]} 12... Nxe4
{[%clk 0:02:43.3]} 13. Qxe4 {[%clk 0:02:34.6]} 13... Bg6 {[%clk 0:02:38.1]} 14.
Bxe7 {[%clk 0:02:30.3]} 14... Qxe7 {[%clk 0:02:33]} 15. Qe2 {[%clk 0:02:25.6]}
15... Qb4 {[%clk 0:02:28.7]} 16. Bxg6 {[%clk 0:02:22]} 16... hxg6 {[%clk
0:02:27.5]} 17. c3 {[%clk 0:02:21]} 17... Qd6 {[%clk 0:02:26.8]} 18. Qe4 {[%clk
0:02:15.5]} 18... Qd5 {[%clk 0:02:18.7]} 19. Qh4 {[%clk 0:02:08]} 19... Qg5
{[%clk 0:02:17.1]} 20. Nxg5 {[%clk 0:02:07.6]} 1-0

[Event "*** SCC Grand Prix: Titled Tuesday Blitz"]
[Site "Chess.com"]
[Date "2020.06.23"]
[Round "2"]
[White "AlphaZ3r0"]
[Black "KNCP_719"]
[Result "0-1"]
[WhiteElo "2295"]
[BlackElo "2472"]
[TimeControl "180+1"]
[EndTime "10:14:49 PDT"]
[Termination "KNCP_719 won by resignation"]

1. Nf3 {[%clk 0:02:58.4]} 1... d5 {[%clk 0:02:59.9]} 2. c4 {[%clk 0:02:58.4]}
2... c6 {[%clk 0:02:59.5]} 3. g3 {[%clk 0:02:54.6]} 3... Nf6 {[%clk 0:03:00]} 4.
Bg2 {[%clk 0:02:54]} 4... Bg4 {[%clk 0:02:59.5]} 5. O-O {[%clk 0:02:54]} 5...
Nbd7 {[%clk 0:02:59]} 6. h3 {[%clk 0:02:47.6]} 6... Bh5 {[%clk 0:02:55]} 7. cxd5
{[%clk 0:02:15.8]} 7... cxd5 {[%clk 0:02:54.5]} 8. d4 {[%clk 0:02:16.7]} 8... e6
{[%clk 0:02:53.5]} 9. Nc3 {[%clk 0:02:16.9]} 9... Bd6 {[%clk 0:02:52.3]} 10. b3
{[%clk 0:02:07]} 10... O-O {[%clk 0:02:51.8]} 11. Nb5 {[%clk 0:02:06.9]} 11...
Be7 {[%clk 0:02:48]} 12. Bf4 {[%clk 0:02:03.3]} 12... a6 {[%clk 0:02:43.1]} 13.
Nd6 {[%clk 0:01:22.4]} 13... Qb6 {[%clk 0:02:35.8]} 14. e4 {[%clk 0:01:01.3]}
14... dxe4 {[%clk 0:02:30.8]} 15. Nc4 {[%clk 0:00:57.6]} 15... Qd8 {[%clk
0:02:29.4]} 0-1

[Event "*** SCC Grand Prix: Titled Tuesday Blitz"]
[Site "Chess.com"]
[Date "2020.06.23"]
[Round "2"]
[White "Khvicha_Supatashvili"]
[Black "crazy_but_lazy"]
[Result "1-0"]
[WhiteElo "2641"]
[BlackElo "2314"]
[TimeControl "180+1"]
[EndTime "10:14:51 PDT"]
[Termination "Khvicha_Supatashvili won by resignation"]

1. d4 {[%clk 0:03:00.9]} 1... Nf6 {[%clk 0:02:57.8]} 2. c4 {[%clk 0:03:00.2]}
2... e6 {[%clk 0:02:58]} 3. Nf3 {[%clk 0:02:59.6]} 3... c5 {[%clk 0:02:57.3]} 4.
d5 {[%clk 0:02:57.5]} 4... b5 {[%clk 0:02:56.9]} 5. e4 {[%clk 0:02:55.7]} 5...
exd5 {[%clk 0:02:41.3]} 6. e5 {[%clk 0:02:47.3]} 6... Ng8 {[%clk 0:01:58.6]} 7.
Qxd5 {[%clk 0:02:41.4]} 7... Nc6 {[%clk 0:01:58.4]} 8. cxb5 {[%clk 0:02:41.6]}
8... Nb4 {[%clk 0:01:58.6]} 9. Qxa8 {[%clk 0:02:37.2]} 9... Nc2+ {[%clk
0:01:58.7]} 10. Kd1 {[%clk 0:02:37.2]} 10... Nxa1 {[%clk 0:01:59.6]} 11. Nc3
{[%clk 0:02:31]} 11... d5 {[%clk 0:01:36.4]} 12. Qxd5 {[%clk 0:02:27.9]} 12...
Qxd5+ {[%clk 0:01:25.6]} 13. Nxd5 {[%clk 0:02:27.5]} 13... Bf5 {[%clk
0:01:25.6]} 14. Ne3 {[%clk 0:02:26]} 14... Be4 {[%clk 0:01:23.3]} 15. b3 {[%clk
0:02:19.1]} 15... Nh6 {[%clk 0:01:20.1]} 16. Bb2 {[%clk 0:02:18.5]} 16... Be7
{[%clk 0:01:07.5]} 17. Bxa1 {[%clk 0:02:16.7]} 17... O-O {[%clk 0:01:07.5]} 18.
Bc4 {[%clk 0:02:15.7]} 18... Rd8+ {[%clk 0:01:06.6]} 19. Ke2 {[%clk 0:02:15.9]}
1-0

[Event "*** SCC Grand Prix: Titled Tuesday Blitz"]
[Site "Chess.com"]
[Date "2020.06.23"]
[Round "2"]
[White "Igrok3069"]
[Black "Squirlolz"]
[Result "1-0"]
[WhiteElo "2740"]
[BlackElo "2500"]
[TimeControl "180+1"]
[EndTime "10:14:56 PDT"]
[Termination "Igrok3069 won by resignation"]

1. d4 {[%clk 0:03:00.9]} 1... e6 {[%clk 0:03:00.2]} 2. c4 {[%clk 0:02:59.9]}
2... b6 {[%clk 0:03:00.4]} 3. Nc3 {[%clk 0:02:57.3]} 3... Bb4 {[%clk 0:03:00]}
4. Qc2 {[%clk 0:02:56.5]} 4... Bb7 {[%clk 0:02:59.9]} 5. a3 {[%clk 0:02:56.5]}
5... Bxc3+ {[%clk 0:03:00.1]} 6. Qxc3 {[%clk 0:02:57.4]} 6... f5 {[%clk
0:02:57.6]} 7. f3 {[%clk 0:02:57.2]} 7... Nf6 {[%clk 0:02:57.9]} 8. Nh3 {[%clk
0:02:55.8]} 8... d6 {[%clk 0:02:52.3]} 9. e3 {[%clk 0:02:55.5]} 9... Nbd7 {[%clk
0:02:52.3]} 10. Be2 {[%clk 0:02:55.3]} 10... O-O {[%clk 0:02:50.9]} 11. O-O
{[%clk 0:02:54.2]} 11... e5 {[%clk 0:02:49.8]} 12. b3 {[%clk 0:02:48.3]} 12...
Qe7 {[%clk 0:02:47.5]} 13. dxe5 {[%clk 0:02:26.9]} 13... dxe5 {[%clk 0:02:34.7]}
14. Bb2 {[%clk 0:02:25.8]} 14... Rad8 {[%clk 0:02:14.9]} 15. Rad1 {[%clk
0:02:25.1]} 15... a5 {[%clk 0:02:13.5]} 16. Rd2 {[%clk 0:02:21.6]} 16... Nc5
{[%clk 0:01:59.7]} 17. Rfd1 {[%clk 0:02:14.9]} 17... Rxd2 {[%clk 0:01:47.6]} 18.
Rxd2 {[%clk 0:02:13.4]} 18... Rd8 {[%clk 0:01:46.5]} 19. Qxe5 {[%clk 0:01:58.4]}
19... Qxe5 {[%clk 0:01:26.1]} 20. Rxd8+ {[%clk 0:01:56.7]} 20... Qe8 {[%clk
0:01:26.8]} 21. Bxf6 {[%clk 0:01:54.9]} 1-0

[Event "*** SCC Grand Prix: Titled Tuesday Blitz"]
[Site "Chess.com"]
[Date "2020.06.23"]
[Round "2"]
[White "GadimbayliA"]
[Black "Fusikk"]
[Result "1-0"]
[WhiteElo "2878"]
[BlackElo "2556"]
[TimeControl "180+1"]
[EndTime "10:14:58 PDT"]
[Termination "GadimbayliA won by resignation"]

1. e4 {[%clk 0:03:00.9]} 1... e6 {[%clk 0:02:54.6]} 2. d4 {[%clk 0:03:00.8]}
2... d5 {[%clk 0:02:54.1]} 3. Nd2 {[%clk 0:03:01.4]} 3... c5 {[%clk 0:02:53.7]}
4. Ngf3 {[%clk 0:03:01]} 4... cxd4 {[%clk 0:02:53.8]} 5. exd5 {[%clk 0:03:00.8]}
5... Qxd5 {[%clk 0:02:54.7]} 6. Bc4 {[%clk 0:03:01]} 6... Qd7 {[%clk 0:02:54.7]}
7. O-O {[%clk 0:03:01.1]} 7... Nc6 {[%clk 0:02:54.3]} 8. Nb3 {[%clk 0:03:01.7]}
8... Nf6 {[%clk 0:02:54.7]} 9. Nbxd4 {[%clk 0:03:01.5]} 9... Nxd4 {[%clk
0:02:55.6]} 10. Nxd4 {[%clk 0:03:02.4]} 10... a6 {[%clk 0:02:55.8]} 11. Re1
{[%clk 0:03:02]} 11... b5 {[%clk 0:02:55.6]} 12. Bb3 {[%clk 0:02:53.7]} 12...
Bb7 {[%clk 0:02:54.9]} 13. Bg5 {[%clk 0:02:46]} 13... Ne4 {[%clk 0:02:53.3]} 14.
Be3 {[%clk 0:02:39.4]} 14... Be7 {[%clk 0:02:48.9]} 15. Qg4 {[%clk 0:02:28.1]}
15... h5 {[%clk 0:02:34]} 16. Qe2 {[%clk 0:02:19.3]} 16... Nc5 {[%clk
0:02:09.4]} 17. Rad1 {[%clk 0:02:15.7]} 17... Nxb3 {[%clk 0:01:56.5]} 18. axb3
{[%clk 0:02:15.3]} 18... Qd5 {[%clk 0:01:53]} 19. f3 {[%clk 0:02:14.5]} 19... h4
{[%clk 0:01:52.2]} 20. Qf2 {[%clk 0:02:12.5]} 20... h3 {[%clk 0:01:50.7]} 21.
Nxe6 {[%clk 0:02:10.9]} 21... fxe6 {[%clk 0:01:39]} 22. Rxd5 {[%clk 0:02:10.4]}
22... Bxd5 {[%clk 0:01:39.9]} 23. Bc5 {[%clk 0:02:07.4]} 23... hxg2 {[%clk
0:01:35.5]} 24. Bxe7 {[%clk 0:02:07.2]} 24... Kxe7 {[%clk 0:01:36.4]} 25. c4
{[%clk 0:02:07.7]} 25... Bb7 {[%clk 0:01:26.1]} 26. Qc5+ {[%clk 0:02:07.2]}
26... Kf7 {[%clk 0:01:25.9]} 27. Qc7+ {[%clk 0:02:07]} 1-0

[Event "*** SCC Grand Prix: Titled Tuesday Blitz"]
[Site "Chess.com"]
[Date "2020.06.23"]
[Round "2"]
[White "Ze-Pequeno"]
[Black "mbachez"]
[Result "0-1"]
[WhiteElo "2161"]
[BlackElo "2410"]
[TimeControl "180+1"]
[EndTime "10:14:59 PDT"]
[Termination "mbachez won by resignation"]

1. e4 {[%clk 0:03:00.9]} 1... c6 {[%clk 0:02:59.8]} 2. d4 {[%clk 0:03:00.5]}
2... d5 {[%clk 0:03:00]} 3. Nc3 {[%clk 0:03:01]} 3... dxe4 {[%clk 0:02:59.7]} 4.
Nxe4 {[%clk 0:03:01.5]} 4... Nf6 {[%clk 0:03:00.3]} 5. Nxf6+ {[%clk 0:03:01.8]}
5... exf6 {[%clk 0:03:01.2]} 6. c3 {[%clk 0:03:02.1]} 6... Bd6 {[%clk
0:03:01.5]} 7. Bd3 {[%clk 0:03:02.6]} 7... O-O {[%clk 0:03:02.1]} 8. Qc2 {[%clk
0:03:03.1]} 8... Re8+ {[%clk 0:03:00.6]} 9. Ne2 {[%clk 0:03:03.3]} 9... h6
{[%clk 0:03:01]} 10. O-O {[%clk 0:03:02.8]} 10... Qc7 {[%clk 0:03:01.3]} 11. h3
{[%clk 0:02:58.9]} 11... Nd7 {[%clk 0:02:59]} 12. Be3 {[%clk 0:02:53.8]} 12...
Nf8 {[%clk 0:02:58.3]} 13. Rfe1 {[%clk 0:02:51.3]} 13... Be6 {[%clk 0:02:57]}
14. a3 {[%clk 0:02:49.1]} 14... Rad8 {[%clk 0:02:57]} 15. Rad1 {[%clk
0:02:48.3]} 15... Qc8 {[%clk 0:02:42.4]} 16. Bf4 {[%clk 0:02:43.1]} 16... Bd5
{[%clk 0:02:28.3]} 17. Bxd6 {[%clk 0:02:40.8]} 17... Rxd6 {[%clk 0:02:26.7]} 18.
Nf4 {[%clk 0:02:34.7]} 18... Ne6 {[%clk 0:02:18.8]} 19. Nxd5 {[%clk 0:02:23]}
19... cxd5 {[%clk 0:02:18.1]} 20. Qd2 {[%clk 0:02:05]} 20... a6 {[%clk 0:02:06]}
21. Re3 {[%clk 0:02:02.6]} 21... g6 {[%clk 0:01:54.8]} 22. Rde1 {[%clk
0:02:01.3]} 22... Kg7 {[%clk 0:01:54.8]} 23. Bf1 {[%clk 0:01:57.3]} 23... Rdd8
{[%clk 0:01:52.7]} 24. g3 {[%clk 0:01:51.9]} 24... Ng5 {[%clk 0:01:52.6]} 25.
Rxe8 {[%clk 0:01:44.5]} 25... Nf3+ {[%clk 0:01:52.1]} 0-1

[Event "*** SCC Grand Prix: Titled Tuesday Blitz"]
[Site "Chess.com"]
[Date "2020.06.23"]
[Round "2"]
[White "Gareth-Bale11"]
[Black "AsaHoffmann"]
[Result "1-0"]
[WhiteElo "2741"]
[BlackElo "2340"]
[TimeControl "180+1"]
[EndTime "10:15:06 PDT"]
[Termination "Gareth-Bale11 won by resignation"]

1. d4 {[%clk 0:03:00.9]} 1... Nf6 {[%clk 0:02:56.5]} 2. Bf4 {[%clk 0:03:00]}
2... d6 {[%clk 0:02:54.2]} 3. Nf3 {[%clk 0:02:59.6]} 3... c6 {[%clk 0:02:53.7]}
4. h3 {[%clk 0:02:59.1]} 4... Bf5 {[%clk 0:02:52.8]} 5. Nbd2 {[%clk 0:02:58.8]}
5... Nbd7 {[%clk 0:02:52.2]} 6. c3 {[%clk 0:02:57.9]} 6... e6 {[%clk 0:02:51.3]}
7. Qb3 {[%clk 0:02:50.3]} 7... Qb6 {[%clk 0:02:50.2]} 8. Nc4 {[%clk 0:02:49.9]}
8... Qxb3 {[%clk 0:02:46.7]} 9. axb3 {[%clk 0:02:50.8]} 9... d5 {[%clk
0:02:42.8]} 10. Na5 {[%clk 0:02:45.5]} 10... Be7 {[%clk 0:02:23]} 11. Nxb7
{[%clk 0:02:43.6]} 11... O-O {[%clk 0:02:22.1]} 12. b4 {[%clk 0:02:39.5]} 12...
h6 {[%clk 0:02:17.4]} 13. e3 {[%clk 0:02:37.2]} 13... Ne8 {[%clk 0:02:10.1]} 14.
Na5 {[%clk 0:02:35.5]} 14... Rc8 {[%clk 0:02:07.4]} 15. Ba6 {[%clk 0:02:34]}
15... Nd6 {[%clk 0:02:02.4]} 16. Bxc8 {[%clk 0:02:32.5]} 16... Rxc8 {[%clk
0:02:01.6]} 17. Nd2 {[%clk 0:02:31.7]} 17... f6 {[%clk 0:01:59.6]} 18. Bxd6
{[%clk 0:02:23.8]} 18... Bxd6 {[%clk 0:01:59.2]} 19. Ndb3 {[%clk 0:02:24.7]}
19... e5 {[%clk 0:01:58.3]} 20. Nc5 {[%clk 0:02:24.3]} 20... Nb6 {[%clk
0:01:56.5]} 21. O-O {[%clk 0:02:18.1]} 21... Kf7 {[%clk 0:01:52.2]} 22. Nab7
{[%clk 0:02:16.5]} 22... Bb8 {[%clk 0:01:49.7]} 23. Na6 {[%clk 0:02:16]} 23...
Nc4 {[%clk 0:01:43.1]} 24. Nxb8 {[%clk 0:02:02.1]} 24... Rxb8 {[%clk 0:01:42.3]}
25. Rxa7 {[%clk 0:02:01.7]} 25... Kg6 {[%clk 0:01:39.7]} 26. Na5 {[%clk
0:01:55.1]} 26... Nxb2 {[%clk 0:01:34.4]} 27. Nxc6 {[%clk 0:01:55.1]} 27... Rc8
{[%clk 0:01:33.6]} 28. Ne7+ {[%clk 0:01:54.5]} 1-0

[Event "*** SCC Grand Prix: Titled Tuesday Blitz"]
[Site "Chess.com"]
[Date "2020.06.23"]
[Round "2"]
[White "reutik"]
[Black "JiiHart"]
[Result "1-0"]
[WhiteElo "2418"]
[BlackElo "2177"]
[TimeControl "180+1"]
[EndTime "10:15:12 PDT"]
[Termination "reutik won by resignation"]

1. d4 {[%clk 0:03:00.9]} 1... e6 {[%clk 0:02:58.4]} 2. c4 {[%clk 0:02:59.5]}
2... Nf6 {[%clk 0:02:58.4]} 3. Nf3 {[%clk 0:02:58.7]} 3... c5 {[%clk 0:02:57.8]}
4. d5 {[%clk 0:02:58.4]} 4... exd5 {[%clk 0:02:58]} 5. cxd5 {[%clk 0:02:58.9]}
5... d6 {[%clk 0:02:58.3]} 6. Nc3 {[%clk 0:02:59.2]} 6... g6 {[%clk 0:02:58.5]}
7. h3 {[%clk 0:02:58.9]} 7... Bg7 {[%clk 0:02:57.2]} 8. Bf4 {[%clk 0:02:58.9]}
8... O-O {[%clk 0:02:51]} 9. e3 {[%clk 0:02:54.6]} 9... a6 {[%clk 0:02:44.3]}
10. a4 {[%clk 0:02:53.9]} 10... Bf5 {[%clk 0:01:49.7]} 11. Nd2 {[%clk
0:02:50.1]} 11... Re8 {[%clk 0:01:39.9]} 12. Nc4 {[%clk 0:02:21.2]} 12... Ne4
{[%clk 0:01:38.4]} 13. Nxe4 {[%clk 0:02:12.7]} 13... Bxe4 {[%clk 0:01:35.7]} 14.
f3 {[%clk 0:02:00.5]} 14... Bf5 {[%clk 0:01:21]} 15. Kf2 {[%clk 0:01:58]} 15...
Bxb2 {[%clk 0:01:13.7]} 16. Nxb2 {[%clk 0:01:55.3]} 1-0